[Event "Titled Tuesday Blitz April 11 Early 2023"]
[White "Asis Gargatagli, Hipolito"]
[Black "Sandro970"]
[WhiteFideId "2260735"]
[WhiteElo "2557"]
[BlackElo "2457"]
[Result "1-0"]
[Round "01"]
[TimeControl "180+2"]
[Date "2023.04.11"]
[WhiteClock "0:02:01"]
[BlackClock "0:01:38"]

1. e4 {[%clk 0:03:00]}  c5 {[%clk 0:02:57]} 2. Nf3 {[%clk 0:03:00]}  Nc6 {[%clk 0:02:58]} 3. Bb5 {[%clk 0:02:59]}  g6 {[%clk 0:02:58]} 4. O-O {[%clk 0:02:59]}  Bg7 {[%clk 0:02:58]} 5. c3 {[%clk 0:03:00]}  d6 {[%clk 0:02:58]} 6. d4 {[%clk 0:02:59]}  cxd4 {[%clk 0:02:58]} 7. cxd4 {[%clk 0:03:00]}  Bd7 {[%clk 0:02:59]} 8. Re1 {[%clk 0:02:59]}  e6 {[%clk 0:02:56]} 9. Nc3 {[%clk 0:02:56]}  Nce7 {[%clk 0:02:55]} 10. Bf4 {[%clk 0:02:53]}  Nc8 {[%clk 0:02:49]} 11. Rc1 {[%clk 0:02:48]}  Nge7 {[%clk 0:02:46]} 12. Qd2 {[%clk 0:02:47]}  O-O {[%clk 0:02:45]} 13. Bh6 {[%clk 0:02:46]}  a6 {[%clk 0:02:42]} 14. Bd3 {[%clk 0:02:39]}  Nc6 {[%clk 0:02:37]} 15. Bxg7 {[%clk 0:02:39]}  Kxg7 {[%clk 0:02:38]} 16. d5 {[%clk 0:02:37]}  Ne5 {[%clk 0:02:36]} 17. Nxe5 {[%clk 0:02:34]}  dxe5 {[%clk 0:02:37]} 18. Red1 {[%clk 0:02:31]}  Qa5 {[%clk 0:02:34]} 19. h4 {[%clk 0:02:29]}  h6 {[%clk 0:02:33]} 20. Qe3 {[%clk 0:02:27]}  Ne7 {[%clk 0:02:28]} 21. Qg3 {[%clk 0:02:26]}  f6 {[%clk 0:02:23]} 22. Bc4 {[%clk 0:02:26]}  exd5 {[%clk 0:02:22]} 23. Nxd5 {[%clk 0:02:26]}  Nxd5 {[%clk 0:02:19]} 24. Bxd5 {[%clk 0:02:27]}  Rab8 {[%clk 0:02:05]} 25. Bb3 {[%clk 0:02:23]}  Bc6 {[%clk 0:02:03]} 26. Rxc6 {[%clk 0:02:21]}  Rbd8 {[%clk 0:01:38]} 27. Rcc1 {[%clk 0:02:17]}  Rd2 {[%clk 0:01:36]} 28. Rxd2 {[%clk 0:02:12]}  Qxd2 {[%clk 0:01:36]} 29. Rc7+ {[%clk 0:02:12]}  Kh8 {[%clk 0:01:37]} 30. Qxg6 {[%clk 0:02:08]}  Qc1+ {[%clk 0:01:38]} 31. Rxc1 {[%clk 0:02:01]} 1-0


[Site "https://www.chess.com"]

[Event "Titled Tuesday Blitz April 11 Early 2023"]
[White "Devaev, Alexander"]
[Black "Bacallao Alonso, Yusnel"]
[WhiteFideId "4169395"]
[BlackFideId "3507416"]
[WhiteElo "2204"]
[BlackElo "2561"]
[Result "1/2-1/2"]
[Round "01"]
[TimeControl "180+2"]
[Date "2023.04.11"]
[WhiteClock "0:00:50"]
[BlackClock "0:00:08"]

1. Nf3 {[%clk 0:02:58]}  d5 {[%clk 0:02:59]} 2. d4 {[%clk 0:02:58]}  e6 {[%clk 0:02:59]} 3. c4 {[%clk 0:02:59]}  a6 {[%clk 0:02:58]} 4. cxd5 {[%clk 0:02:58]}  exd5 {[%clk 0:02:59]} 5. Nc3 {[%clk 0:02:59]}  c6 {[%clk 0:02:59]} 6. Bf4 {[%clk 0:02:56]}  Bd6 {[%clk 0:02:58]} 7. Bg3 {[%clk 0:02:55]}  Nf6 {[%clk 0:02:55]} 8. Qc2 {[%clk 0:02:54]}  O-O {[%clk 0:02:53]} 9. e3 {[%clk 0:02:51]}  Re8 {[%clk 0:02:46]} 10. Bd3 {[%clk 0:02:52]}  Bg4 {[%clk 0:02:31]} 11. Bh4 {[%clk 0:02:51]}  h6 {[%clk 0:02:11]} 12. Bg3 {[%clk 0:02:50]}  Qe7 {[%clk 0:02:02]} 13. Qb3 {[%clk 0:02:40]}  b5 {[%clk 0:01:55]} 14. Qc2 {[%clk 0:02:39]}  Nbd7 {[%clk 0:01:54]} 15. O-O {[%clk 0:02:33]}  Rac8 {[%clk 0:01:52]} 16. Rad1 {[%clk 0:02:30]}  Bxg3 {[%clk 0:01:43]} 17. hxg3 {[%clk 0:02:29]}  c5 {[%clk 0:01:34]} 18. dxc5 {[%clk 0:02:28]}  Rxc5 {[%clk 0:01:26]} 19. Bf5 {[%clk 0:02:28]}  b4 {[%clk 0:01:15]} 20. Bxg4 {[%clk 0:02:27]}  Nxg4 {[%clk 0:01:15]} 21. Qf5 {[%clk 0:02:15]}  Nxe3 {[%clk 0:01:04]} 22. fxe3 {[%clk 0:02:12]}  bxc3 {[%clk 0:01:04]} 23. bxc3 {[%clk 0:02:13]}  Nf6 {[%clk 0:00:59]} 24. Rd3 {[%clk 0:02:10]}  d4 {[%clk 0:00:57]} 25. Qf4 {[%clk 0:01:58]}  dxc3 {[%clk 0:00:48]} 26. Rc1 {[%clk 0:01:58]}  Rd8 {[%clk 0:00:34]} 27. Rd4 {[%clk 0:01:47]}  Rdc8 {[%clk 0:00:30]} 28. Nh4 {[%clk 0:01:35]}  g6 {[%clk 0:00:06]} 29. Nf3 {[%clk 0:01:23]}  Kg7 {[%clk 0:00:05]} 30. Ne1 {[%clk 0:01:21]}  Nd5 {[%clk 0:00:05]} 31. Qf3 {[%clk 0:01:19]}  Qxe3+ {[%clk 0:00:05]} 32. Qxe3 {[%clk 0:01:20]}  Nxe3 {[%clk 0:00:06]} 33. Rd3 {[%clk 0:01:18]}  Nf5 {[%clk 0:00:06]} 34. Rc2 {[%clk 0:01:16]}  h5 {[%clk 0:00:06]} 35. Kf2 {[%clk 0:01:16]}  Rb8 {[%clk 0:00:06]} 36. Rdxc3 {[%clk 0:01:14]}  Rxc3 {[%clk 0:00:06]} 37. Rxc3 {[%clk 0:01:15]}  Rb2+ {[%clk 0:00:06]} 38. Rc2 {[%clk 0:01:15]}  Rb4 {[%clk 0:00:07]} 39. Nd3 {[%clk 0:01:11]}  Rg4 {[%clk 0:00:07]} 40. Rc7 {[%clk 0:01:09]}  Kf6 {[%clk 0:00:04]} 41. Rc6+ {[%clk 0:01:08]}  Kg7 {[%clk 0:00:05]} 42. Rc7 {[%clk 0:01:08]}  Kf6 {[%clk 0:00:03]} 43. Rc6+ {[%clk 0:01:08]}  Ke7 {[%clk 0:00:03]} 44. Rc7+ {[%clk 0:01:07]}  Kd6 {[%clk 0:00:03]} 45. Rxf7 {[%clk 0:01:07]}  Rxg3 {[%clk 0:00:02]} 46. Rf6+ {[%clk 0:01:06]}  Ke7 {[%clk 0:00:01]} 47. Rxf5 {[%clk 0:01:03]}  Rxd3 {[%clk 0:00:02]} 48. Re5+ {[%clk 0:01:03]}  Kf6 {[%clk 0:00:02]} 49. Re2 {[%clk 0:01:04]}  Rd6 {[%clk 0:00:02]} 50. Kg1 {[%clk 0:01:04]}  Re6 {[%clk 0:00:03]} 51. Rf2+ {[%clk 0:01:05]}  Kg5 {[%clk 0:00:03]} 52. Rb2 {[%clk 0:01:06]}  Re1+ {[%clk 0:00:04]} 53. Kf2 {[%clk 0:01:07]}  Re6 {[%clk 0:00:05]} 54. Rb4 {[%clk 0:01:07]}  Kf6 {[%clk 0:00:06]} 55. Rb2 {[%clk 0:01:07]}  Re5 {[%clk 0:00:06]} 56. Kg3 {[%clk 0:01:08]}  Rf5 {[%clk 0:00:07]} 57. Rb6+ {[%clk 0:01:08]}  Kg5 {[%clk 0:00:07]} 58. Rxa6 {[%clk 0:01:09]}  h4+ {[%clk 0:00:08]} 59. Kh3 {[%clk 0:01:08]}  Kh5 {[%clk 0:00:07]} 60. Ra8 {[%clk 0:01:08]}  g5 {[%clk 0:00:07]} 61. Rh8+ {[%clk 0:01:08]}  Kg6 {[%clk 0:00:07]} 62. a4 {[%clk 0:01:08]}  Rc5 {[%clk 0:00:06]} 63. Rg8+ {[%clk 0:01:08]}  Kf6 {[%clk 0:00:06]} 64. Rf8+ {[%clk 0:01:09]}  Kg7 {[%clk 0:00:05]} 65. Rb8 {[%clk 0:01:09]}  Rc4 {[%clk 0:00:04]} 66. Rb5 {[%clk 0:01:09]}  Kg6 {[%clk 0:00:04]} 67. a5 {[%clk 0:01:09]}  Kh5 {[%clk 0:00:04]} 68. Rb8 {[%clk 0:01:09]}  Rc3+ {[%clk 0:00:04]} 69. Kh2 {[%clk 0:01:09]}  Ra3 {[%clk 0:00:05]} 70. Rh8+ {[%clk 0:01:08]}  Kg4 {[%clk 0:00:06]} 71. Rb8 {[%clk 0:01:08]}  Ra2 {[%clk 0:00:06]} 72. Rb4+ {[%clk 0:01:09]}  Kh5 {[%clk 0:00:06]} 73. Rb5 {[%clk 0:01:10]}  Ra4 {[%clk 0:00:06]} 74. Kg1 {[%clk 0:01:10]}  Kg4 {[%clk 0:00:05]} 75. Kf2 {[%clk 0:01:07]}  Kf4 {[%clk 0:00:05]} 76. a6 {[%clk 0:01:03]}  Rxa6 {[%clk 0:00:05]} 77. Rb4+ {[%clk 0:01:04]}  Kf5 {[%clk 0:00:05]} 78. Rb5+ {[%clk 0:01:04]}  Kg4 {[%clk 0:00:05]} 79. Rb4+ {[%clk 0:01:05]}  Kh5 {[%clk 0:00:06]} 80. Rb3 {[%clk 0:01:05]}  Ra2+ {[%clk 0:00:06]} 81. Kf3 {[%clk 0:01:06]}  Ra4 {[%clk 0:00:07]} 82. Rb8 {[%clk 0:01:02]}  Ra3+ {[%clk 0:00:06]} 83. Kf2 {[%clk 0:01:02]}  Ra4 {[%clk 0:00:07]} 84. Rb6 {[%clk 0:00:59]}  Kg4 {[%clk 0:00:07]} 85. Rb2 {[%clk 0:00:58]}  Rf4+ {[%clk 0:00:06]} 86. Kg1 {[%clk 0:00:59]}  Re4 {[%clk 0:00:06]} 87. Kf2 {[%clk 0:00:57]}  Kf4 {[%clk 0:00:06]} 88. Rb8 {[%clk 0:00:56]}  Re5 {[%clk 0:00:07]} 89. Rb4+ {[%clk 0:00:55]}  Kf5 {[%clk 0:00:05]} 90. g3 {[%clk 0:00:50]}  hxg3+ {[%clk 0:00:03]} 91. Kxg3 {[%clk 0:00:51]}  Re3+ {[%clk 0:00:04]} 92. Kg2 {[%clk 0:00:51]}  Re4 {[%clk 0:00:03]} 93. Rb3 {[%clk 0:00:49]}  Kf4 {[%clk 0:00:02]} 94. Rf3+ {[%clk 0:00:48]}  Kg4 {[%clk 0:00:03]} 95. Rg3+ {[%clk 0:00:49]}  Kh5 {[%clk 0:00:03]} 96. Rh3+ {[%clk 0:00:49]}  Rh4 {[%clk 0:00:04]} 97. Rb3 {[%clk 0:00:48]}  Rg4+ {[%clk 0:00:03]} 98. Kh3 {[%clk 0:00:49]}  Rf4 {[%clk 0:00:03]} 99. Kg3 {[%clk 0:00:49]}  Ra4 {[%clk 0:00:03]} 100. Rc3 {[%clk 0:00:49]}  Rg4+ {[%clk 0:00:03]} 101. Kh3 {[%clk 0:00:50]}  Rh4+ {[%clk 0:00:04]} 102. Kg3 {[%clk 0:00:50]}  Rg4+ {[%clk 0:00:05]} 103. Kh3 {[%clk 0:00:51]}  Rf4 {[%clk 0:00:06]} 104. Kg3 {[%clk 0:00:51]}  Rh4 {[%clk 0:00:03]} 105. Rc8 {[%clk 0:00:51]}  Rg4+ {[%clk 0:00:03]} 106. Kh3 {[%clk 0:00:50]}  Rf4 {[%clk 0:00:04]} 107. Rh8+ {[%clk 0:00:51]}  Kg6 {[%clk 0:00:05]} 108. Ra8 {[%clk 0:00:51]}  Kf5 {[%clk 0:00:06]} 109. Ra5+ {[%clk 0:00:50]}  Kg6 {[%clk 0:00:06]} 110. Kg3 {[%clk 0:00:50]}  Kh5 {[%clk 0:00:05]} 111. Rb5 {[%clk 0:00:49]}  Rg4+ {[%clk 0:00:05]} 112. Kh3 {[%clk 0:00:48]}  Rc4 {[%clk 0:00:06]} 113. Rb3 {[%clk 0:00:49]}  Rd4 {[%clk 0:00:06]} 114. Kg3 {[%clk 0:00:49]}  Kg6 {[%clk 0:00:06]} 115. Rb6+ {[%clk 0:00:48]}  Kf5 {[%clk 0:00:06]} 116. Rb5+ {[%clk 0:00:48]}  Kf6 {[%clk 0:00:07]} 117. Rb6+ {[%clk 0:00:49]}  Kf5 {[%clk 0:00:07]} 118. Rb5+ {[%clk 0:00:49]}  Kf6 {[%clk 0:00:07]} 119. Rb6+ {[%clk 0:00:50]}  Kf5 {[%clk 0:00:08]} 1/2-1/2


[Site "https://www.chess.com"]

[Event "Titled Tuesday Blitz April 11 Early 2023"]
[White "Gorodetzky, David"]
[Black "mohsengabr2002"]
[WhiteFideId "2813416"]
[WhiteElo "2484"]
[BlackElo "2456"]
[Result "1-0"]
[Round "01"]
[TimeControl "180+2"]
[Date "2023.04.11"]
[WhiteClock "0:00:50"]
[BlackClock "0:00:38"]

1. Nf3 {[%clk 0:02:59]}  d5 {[%clk 0:02:57]} 2. d4 {[%clk 0:02:56]}  c6 {[%clk 0:02:55]} 3. c4 {[%clk 0:02:55]}  Bf5 {[%clk 0:02:54]} 4. e3 {[%clk 0:02:55]}  e6 {[%clk 0:02:54]} 5. Nbd2 {[%clk 0:02:55]}  Nf6 {[%clk 0:02:53]} 6. b3 {[%clk 0:02:55]}  Nbd7 {[%clk 0:02:52]} 7. Bb2 {[%clk 0:02:54]}  Bd6 {[%clk 0:02:51]} 8. Be2 {[%clk 0:02:54]}  O-O {[%clk 0:02:51]} 9. Nh4 {[%clk 0:02:51]}  Be4 {[%clk 0:02:50]} 10. O-O {[%clk 0:02:46]}  Ne8 {[%clk 0:02:42]} 11. Nxe4 {[%clk 0:02:39]}  dxe4 {[%clk 0:02:39]} 12. g3 {[%clk 0:02:37]}  f5 {[%clk 0:02:35]} 13. Ng2 {[%clk 0:02:21]}  g5 {[%clk 0:02:35]} 14. d5 {[%clk 0:02:16]}  cxd5 {[%clk 0:02:31]} 15. cxd5 {[%clk 0:02:17]}  e5 {[%clk 0:02:31]} 16. f4 {[%clk 0:02:06]}  exf3 {[%clk 0:02:26]} 17. Bxf3 {[%clk 0:02:05]}  e4 {[%clk 0:02:21]} 18. Bh5 {[%clk 0:02:03]}  Be5 {[%clk 0:02:16]} 19. Bxe5 {[%clk 0:02:00]}  Nxe5 {[%clk 0:02:16]} 20. Qd4 {[%clk 0:02:00]}  Qd6 {[%clk 0:02:11]} 21. Rac1 {[%clk 0:01:53]}  Ng7 {[%clk 0:02:09]} 22. Be2 {[%clk 0:01:53]}  Rad8 {[%clk 0:02:07]} 23. Qxa7 {[%clk 0:01:52]}  Qxd5 {[%clk 0:02:02]} 24. Rfd1 {[%clk 0:01:24]}  Nd3 {[%clk 0:01:49]} 25. Rc7 {[%clk 0:01:22]}  Rf7 {[%clk 0:01:39]} 26. Rxf7 {[%clk 0:01:17]}  Kxf7 {[%clk 0:01:39]} 27. Ne1 {[%clk 0:01:17]}  Ne6 {[%clk 0:00:53]} 28. Nxd3 {[%clk 0:01:11]}  exd3 {[%clk 0:00:53]} 29. Rxd3 {[%clk 0:01:11]}  Qc6 {[%clk 0:00:53]} 30. Rxd8 {[%clk 0:01:09]}  Nxd8 {[%clk 0:00:53]} 31. Bc4+ {[%clk 0:01:09]}  Kf6 {[%clk 0:00:52]} 32. Qd4+ {[%clk 0:01:08]}  Kg6 {[%clk 0:00:51]} 33. Qxd8 {[%clk 0:01:07]}  Qf3 {[%clk 0:00:51]} 34. Qd6+ {[%clk 0:01:02]}  Kg7 {[%clk 0:00:48]} 35. Qd4+ {[%clk 0:01:01]}  Kg6 {[%clk 0:00:46]} 36. Bf1 {[%clk 0:00:56]}  h5 {[%clk 0:00:41]} 37. a4 {[%clk 0:00:54]}  h4 {[%clk 0:00:39]} 38. gxh4 {[%clk 0:00:53]}  gxh4 {[%clk 0:00:38]} 39. Qf4 {[%clk 0:00:50]} 1-0


[Site "https://www.chess.com"]

[Event "Titled Tuesday Blitz April 11 Early 2023"]
[White "Hadzimanolis, Antonios"]
[Black "Galchenko, Matvey"]
[WhiteFideId "4202813"]
[BlackFideId "24175480"]
[WhiteElo "2242"]
[BlackElo "2423"]
[Result "0-1"]
[Round "01"]
[TimeControl "180+2"]
[Date "2023.04.11"]
[WhiteClock "0:00:26"]
[BlackClock "0:00:32"]

1. e4 {[%clk 0:03:00]}  e6 {[%clk 0:02:56]} 2. d4 {[%clk 0:03:00]}  d5 {[%clk 0:02:56]} 3. exd5 {[%clk 0:03:00]}  exd5 {[%clk 0:02:56]} 4. c4 {[%clk 0:03:01]}  Nf6 {[%clk 0:02:57]} 5. Nc3 {[%clk 0:03:00]}  Bb4 {[%clk 0:02:57]} 6. Bd3 {[%clk 0:03:00]}  O-O {[%clk 0:02:57]} 7. Ne2 {[%clk 0:03:00]}  dxc4 {[%clk 0:02:46]} 8. Bxc4 {[%clk 0:03:01]}  Nbd7 {[%clk 0:02:46]} 9. O-O {[%clk 0:02:59]}  Nb6 {[%clk 0:02:46]} 10. Bb3 {[%clk 0:02:59]}  h6 {[%clk 0:02:40]} 11. Nf4 {[%clk 0:02:44]}  c6 {[%clk 0:02:32]} 12. a3 {[%clk 0:02:12]}  Bd6 {[%clk 0:02:31]} 13. Re1 {[%clk 0:02:04]}  Re8 {[%clk 0:02:27]} 14. Rxe8+ {[%clk 0:01:54]}  Qxe8 {[%clk 0:02:28]} 15. Be3 {[%clk 0:01:49]}  Bf5 {[%clk 0:02:23]} 16. Nh5 {[%clk 0:01:42]}  Ng4 {[%clk 0:01:35]} 17. Qf3 {[%clk 0:01:17]}  Qd7 {[%clk 0:01:14]} 18. h3 {[%clk 0:01:15]}  Nxe3 {[%clk 0:01:12]} 19. fxe3 {[%clk 0:01:16]}  Re8 {[%clk 0:01:04]} 20. Rf1 {[%clk 0:01:15]}  Bg6 {[%clk 0:01:04]} 21. Nf4 {[%clk 0:01:14]}  Bxf4 {[%clk 0:00:59]} 22. Qxf4 {[%clk 0:01:14]}  Nd5 {[%clk 0:00:51]} 23. Nxd5 {[%clk 0:00:58]}  cxd5 {[%clk 0:00:52]} 24. Rc1 {[%clk 0:00:58]}  Qb5 {[%clk 0:00:52]} 25. Bd1 {[%clk 0:00:48]}  Qxb2 {[%clk 0:00:50]} 26. Rc7 {[%clk 0:00:40]}  Qa1 {[%clk 0:00:49]} 27. Qf3 {[%clk 0:00:32]}  Qxa3 {[%clk 0:00:46]} 28. Qxd5 {[%clk 0:00:29]}  Qxe3+ {[%clk 0:00:46]} 29. Kh1 {[%clk 0:00:26]}  Qg3 {[%clk 0:00:32]} 0-1


[Site "https://www.chess.com"]

[Event "Titled Tuesday Blitz April 11 Early 2023"]
[White "Rafiee, Makan"]
[Black "Mikhailovsky, Vladimir"]
[WhiteFideId "24609340"]
[BlackFideId "34105414"]
[WhiteElo "2327"]
[BlackElo "2275"]
[Result "1-0"]
[Round "01"]
[TimeControl "180+2"]
[Date "2023.04.11"]
[WhiteClock "0:00:30"]
[BlackClock "0:00:47"]

1. e4 {[%clk 0:03:00]}  Nf6 {[%clk 0:02:55]} 2. e5 {[%clk 0:02:59]}  Nd5 {[%clk 0:02:56]} 3. c4 {[%clk 0:03:00]}  Nb6 {[%clk 0:02:55]} 4. d4 {[%clk 0:03:00]}  d6 {[%clk 0:02:56]} 5. exd6 {[%clk 0:03:01]}  exd6 {[%clk 0:02:56]} 6. Nc3 {[%clk 0:03:02]}  Be7 {[%clk 0:02:57]} 7. h3 {[%clk 0:03:03]}  Bf5 {[%clk 0:02:56]} 8. Nf3 {[%clk 0:02:59]}  O-O {[%clk 0:02:56]} 9. Be2 {[%clk 0:02:59]}  Nc6 {[%clk 0:02:55]} 10. O-O {[%clk 0:02:59]}  Re8 {[%clk 0:02:55]} 11. b3 {[%clk 0:02:58]}  Bf6 {[%clk 0:02:53]} 12. Bb2 {[%clk 0:02:57]}  d5 {[%clk 0:02:51]} 13. c5 {[%clk 0:02:52]}  Nc8 {[%clk 0:02:51]} 14. a3 {[%clk 0:02:52]}  a5 {[%clk 0:02:50]} 15. Bb5 {[%clk 0:02:43]}  N8e7 {[%clk 0:02:47]} 16. Re1 {[%clk 0:02:39]}  Ng6 {[%clk 0:02:40]} 17. Rxe8+ {[%clk 0:02:27]}  Qxe8 {[%clk 0:02:39]} 18. Nxd5 {[%clk 0:02:27]}  Qd8 {[%clk 0:02:31]} 19. Nxf6+ {[%clk 0:02:23]}  Qxf6 {[%clk 0:02:32]} 20. Qd2 {[%clk 0:02:20]}  Bxh3 {[%clk 0:01:34]} 21. d5 {[%clk 0:02:17]}  Qf5 {[%clk 0:01:28]} 22. dxc6 {[%clk 0:02:12]}  Bxg2 {[%clk 0:01:20]} 23. Qd4 {[%clk 0:02:06]}  f6 {[%clk 0:01:12]} 24. Kxg2 {[%clk 0:01:49]}  Nf4+ {[%clk 0:01:12]} 25. Kg3 {[%clk 0:00:54]}  Ne2+ {[%clk 0:01:09]} 26. Bxe2 {[%clk 0:00:53]}  Re8 {[%clk 0:01:03]} 27. cxb7 {[%clk 0:00:47]}  h5 {[%clk 0:01:00]} 28. Bc4+ {[%clk 0:00:46]}  Kh8 {[%clk 0:01:00]} 29. Re1 {[%clk 0:00:39]}  Rb8 {[%clk 0:00:52]} 30. Qe4 {[%clk 0:00:35]}  Qxc5 {[%clk 0:00:49]} 31. Qe8+ {[%clk 0:00:31]}  Rxe8 {[%clk 0:00:47]} 32. Rxe8+ {[%clk 0:00:32]}  Kh7 {[%clk 0:00:48]} 33. b8=Q {[%clk 0:00:30]}  Qd6+ {[%clk 0:00:47]} 34. Kg2 {[%clk 0:00:30]} 1-0


[Site "https://www.chess.com"]

[Event "Titled Tuesday Blitz April 11 Early 2023"]
[White "Samunenkov, Ihor"]
[Black "Ramirez Vido, Robert Yorisan"]
[WhiteFideId "14187086"]
[BlackFideId "3513823"]
[WhiteElo "2457"]
[BlackElo "2440"]
[Result "1-0"]
[Round "01"]
[TimeControl "180+2"]
[Date "2023.04.11"]
[WhiteClock "0:00:10"]
[BlackClock "0:00:02"]

1. d4 {[%clk 0:03:00]}  g6 {[%clk 0:02:53]} 2. c4 {[%clk 0:02:52]}  Nf6 {[%clk 0:02:52]} 3. Nc3 {[%clk 0:02:49]}  Bg7 {[%clk 0:02:50]} 4. e4 {[%clk 0:02:48]}  d6 {[%clk 0:02:50]} 5. h3 {[%clk 0:02:46]}  O-O {[%clk 0:02:50]} 6. Be3 {[%clk 0:02:45]}  e5 {[%clk 0:02:50]} 7. d5 {[%clk 0:02:45]}  a5 {[%clk 0:02:48]} 8. g4 {[%clk 0:02:45]}  c6 {[%clk 0:02:45]} 9. Nge2 {[%clk 0:02:19]}  Na6 {[%clk 0:02:45]} 10. Ng3 {[%clk 0:02:19]}  Nc5 {[%clk 0:02:44]} 11. Qd2 {[%clk 0:02:07]}  a4 {[%clk 0:02:41]} 12. f3 {[%clk 0:02:02]}  Qa5 {[%clk 0:02:41]} 13. h4 {[%clk 0:01:57]}  Bd7 {[%clk 0:02:30]} 14. h5 {[%clk 0:01:38]}  cxd5 {[%clk 0:02:28]} 15. cxd5 {[%clk 0:01:38]}  b5 {[%clk 0:02:28]} 16. h6 {[%clk 0:01:17]}  Bh8 {[%clk 0:02:28]} 17. Be2 {[%clk 0:00:25]}  b4 {[%clk 0:02:16]} 18. Nd1 {[%clk 0:00:25]}  Rfc8 {[%clk 0:02:09]} 19. Nf2 {[%clk 0:00:23]}  Bb5 {[%clk 0:01:55]} 20. O-O {[%clk 0:00:23]}  b3 {[%clk 0:01:50]} 21. Qxa5 {[%clk 0:00:15]}  Rxa5 {[%clk 0:01:51]} 22. Bxb5 {[%clk 0:00:16]}  Rxb5 {[%clk 0:01:52]} 23. a3 {[%clk 0:00:16]}  Rb7 {[%clk 0:01:42]} 24. Rac1 {[%clk 0:00:16]}  Rbc7 {[%clk 0:01:42]} 25. Rc4 {[%clk 0:00:15]}  Nfd7 {[%clk 0:01:40]} 26. Rfc1 {[%clk 0:00:14]}  Bf6 {[%clk 0:01:38]} 27. Nd3 {[%clk 0:00:12]}  Nb6 {[%clk 0:01:21]} 28. R4c3 {[%clk 0:00:09]}  Nxd3 {[%clk 0:01:19]} 29. Rxc7 {[%clk 0:00:02]}  Nxc1 {[%clk 0:01:19]} 30. Rxc8+ {[%clk 0:00:03]}  Nxc8 {[%clk 0:01:19]} 31. Bxc1 {[%clk 0:00:04]}  Kf8 {[%clk 0:01:15]} 32. Ne2 {[%clk 0:00:03]}  Nb6 {[%clk 0:01:15]} 33. Nc3 {[%clk 0:00:03]}  Bd8 {[%clk 0:00:44]} 34. Kf2 {[%clk 0:00:03]}  Ke8 {[%clk 0:00:41]} 35. Be3 {[%clk 0:00:03]}  Nc4 {[%clk 0:00:38]} 36. Nxa4 {[%clk 0:00:03]}  Bh4+ {[%clk 0:00:31]} 37. Ke2 {[%clk 0:00:04]}  Nxe3 {[%clk 0:00:32]} 38. Kxe3 {[%clk 0:00:04]}  Bg5+ {[%clk 0:00:33]} 39. Kd3 {[%clk 0:00:05]}  Bxh6 {[%clk 0:00:33]} 40. Nb6 {[%clk 0:00:03]}  Bc1 {[%clk 0:00:30]} 41. Nc4 {[%clk 0:00:01]}  Kd7 {[%clk 0:00:29]} 42. a4 {[%clk 0:00:01]}  h5 {[%clk 0:00:28]} 43. gxh5 {[%clk 0:00:02]}  gxh5 {[%clk 0:00:29]} 44. Ke2 {[%clk 0:00:03]}  h4 {[%clk 0:00:28]} 45. Kf2 {[%clk 0:00:04]}  Bf4 {[%clk 0:00:18]} 46. Kg2 {[%clk 0:00:04]}  Kc7 {[%clk 0:00:15]} 47. Kh3 {[%clk 0:00:04]}  Bg5 {[%clk 0:00:14]} 48. Kg4 {[%clk 0:00:05]}  f6 {[%clk 0:00:14]} 49. Na5 {[%clk 0:00:05]}  Bc1 {[%clk 0:00:11]} 50. Nxb3 {[%clk 0:00:06]}  Bxb2 {[%clk 0:00:11]} 51. Kxh4 {[%clk 0:00:06]}  Kb6 {[%clk 0:00:11]} 52. Kg4 {[%clk 0:00:07]}  Bc1 {[%clk 0:00:10]} 53. Kf5 {[%clk 0:00:08]}  Bg5 {[%clk 0:00:11]} 54. Ke6 {[%clk 0:00:07]}  Kc7 {[%clk 0:00:09]} 55. Na5 {[%clk 0:00:07]}  Bd2 {[%clk 0:00:07]} 56. Nc4 {[%clk 0:00:08]}  Bc3 {[%clk 0:00:07]} 57. Kxf6 {[%clk 0:00:08]}  Bb4 {[%clk 0:00:04]} 58. Ke6 {[%clk 0:00:09]}  Bc5 {[%clk 0:00:02]} 59. a5 {[%clk 0:00:09]}  Bb4 {[%clk 0:00:02]} 60. a6 {[%clk 0:00:10]}  Kb8 {[%clk 0:00:02]} 61. Nxd6 {[%clk 0:00:10]}  Bxd6 {[%clk 0:00:02]} 62. Kxd6 {[%clk 0:00:10]} 1-0


[Site "https://www.chess.com"]